[Event "*** Titled Tuesday Blitz"]
[Site "Chess.com"]
[Date "2020.04.28"]
[Round "6"]
[White "Kavyev_Ruslan"]
[Black "Blitzking642"]
[Result "1-0"]
[WhiteElo "2487"]
[BlackElo "2314"]
[TimeControl "180+1"]
[EndTime "11:07:30 PDT"]
[Termination "Kavyev_Ruslan won on time"]

1. d4 {[%clk 0:03:00.9]} 1... Nf6 {[%clk 0:02:59.6]} 2. c4 {[%clk 0:02:59.1]}
2... g6 {[%clk 0:02:59.8]} 3. Nc3 {[%clk 0:02:58.3]} 3... d5 {[%clk 0:03:00.1]}
4. Bf4 {[%clk 0:02:57.7]} 4... Bg7 {[%clk 0:02:57.7]} 5. e3 {[%clk 0:02:57.5]}
5... O-O {[%clk 0:02:56.5]} 6. Rc1 {[%clk 0:02:57.3]} 6... c5 {[%clk 0:02:51.9]}
7. dxc5 {[%clk 0:02:55.8]} 7... Qa5 {[%clk 0:02:50.2]} 8. cxd5 {[%clk
0:02:55.7]} 8... Rd8 {[%clk 0:02:46.9]} 9. Bc4 {[%clk 0:02:55.5]} 9... Qxc5
{[%clk 0:02:43.4]} 10. Bb3 {[%clk 0:02:55.2]} 10... Nc6 {[%clk 0:02:29.5]} 11.
Nge2 {[%clk 0:02:44.1]} 11... Na5 {[%clk 0:02:24]} 12. O-O {[%clk 0:02:44.2]}
12... Nxb3 {[%clk 0:02:23.6]} 13. Qxb3 {[%clk 0:02:45.1]} 13... Qa5 {[%clk
0:01:50.9]} 14. Rfd1 {[%clk 0:02:43.5]} 14... Qa6 {[%clk 0:01:40.7]} 15. Nd4
{[%clk 0:02:40.3]} 15... Bd7 {[%clk 0:01:35.8]} 16. e4 {[%clk 0:02:39.1]} 16...
Rdc8 {[%clk 0:01:30.6]} 17. h3 {[%clk 0:02:38.3]} 17... Qc4 {[%clk 0:01:18.4]}
18. Be3 {[%clk 0:02:28.2]} 18... Qxb3 {[%clk 0:01:16.7]} 19. Nxb3 {[%clk
0:02:27.1]} 19... Be8 {[%clk 0:01:06.6]} 20. f3 {[%clk 0:02:26]} 20... Nd7
{[%clk 0:01:05.1]} 21. Bd4 {[%clk 0:02:25.9]} 21... Bh6 {[%clk 0:01:03.5]} 22.
Rc2 {[%clk 0:02:22.3]} 22... Nb6 {[%clk 0:01:01.8]} 23. g3 {[%clk 0:02:14.5]}
23... Nc4 {[%clk 0:00:58.4]} 24. f4 {[%clk 0:02:14.3]} 24... b5 {[%clk
0:00:49.6]} 25. Nxb5 {[%clk 0:02:11]} 25... Bxb5 {[%clk 0:00:48.1]} 26. Rdc1
{[%clk 0:02:11.2]} 26... Nb6 {[%clk 0:00:35.9]} 27. Bc5 {[%clk 0:02:06.5]} 27...
Bf8 {[%clk 0:00:31.1]} 28. Nd4 {[%clk 0:02:05.2]} 28... Bd7 {[%clk 0:00:30.1]}
29. f5 {[%clk 0:02:00]} 29... Na4 {[%clk 0:00:28.9]} 30. fxg6 {[%clk 0:01:52.2]}
30... hxg6 {[%clk 0:00:27.9]} 31. Ba3 {[%clk 0:01:50.7]} 31... Bg7 {[%clk
0:00:25.2]} 32. Nc6 {[%clk 0:01:48.4]} 32... Bxc6 {[%clk 0:00:24.2]} 33. dxc6
{[%clk 0:01:48.9]} 33... Be5 {[%clk 0:00:23.3]} 34. Kg2 {[%clk 0:01:47.1]} 34...
Bd6 {[%clk 0:00:23.2]} 35. Bxd6 {[%clk 0:01:45.5]} 35... exd6 {[%clk 0:00:24.1]}
36. Rd2 {[%clk 0:01:45.6]} 36... Nc5 {[%clk 0:00:17.9]} 37. Kf3 {[%clk
0:01:40.9]} 37... Rxc6 {[%clk 0:00:17.3]} 38. b4 {[%clk 0:01:40.8]} 38... Rac8
{[%clk 0:00:15.1]} 39. bxc5 {[%clk 0:01:41.3]} 39... dxc5 {[%clk 0:00:15.9]} 40.
Rc4 {[%clk 0:01:38.8]} 40... Ra6 {[%clk 0:00:15.9]} 41. a4 {[%clk 0:01:37.3]}
41... Rb8 {[%clk 0:00:14.9]} 42. Rd5 {[%clk 0:01:35.4]} 42... Rb3+ {[%clk
0:00:13.9]} 43. Kf4 {[%clk 0:01:35.9]} 43... Rb4 {[%clk 0:00:14.2]} 44. Rdxc5
{[%clk 0:01:28.1]} 44... Rbxa4 {[%clk 0:00:13.8]} 45. Rxa4 {[%clk 0:01:25.9]}
45... Rxa4 {[%clk 0:00:13.5]} 46. g4 {[%clk 0:01:26.5]} 46... Kg7 {[%clk
0:00:13.7]} 47. g5 {[%clk 0:01:26.7]} 47... a5 {[%clk 0:00:13.5]} 48. h4 {[%clk
0:01:27]} 48... Ra2 {[%clk 0:00:13.4]} 49. Rc7 {[%clk 0:01:27.4]} 49... a4
{[%clk 0:00:12]} 50. e5 {[%clk 0:01:27.8]} 50... Kf8 {[%clk 0:00:10.8]} 51. Rc8+
{[%clk 0:01:27.6]} 51... Ke7 {[%clk 0:00:10.3]} 52. Rc7+ {[%clk 0:01:28.3]}
52... Ke8 {[%clk 0:00:10.3]} 53. Ra7 {[%clk 0:01:28.2]} 53... a3 {[%clk
0:00:09.8]} 54. e6 {[%clk 0:01:27]} 54... fxe6 {[%clk 0:00:09.3]} 55. Ke5 {[%clk
0:01:27.7]} 55... Rh2 {[%clk 0:00:07.6]} 56. Kxe6 {[%clk 0:01:27.5]} 56... Kd8
{[%clk 0:00:05.9]} 57. Rxa3 {[%clk 0:01:22.6]} 57... Rxh4 {[%clk 0:00:06.1]} 58.
Kf6 {[%clk 0:01:23.1]} 58... Ke8 {[%clk 0:00:05.8]} 59. Kxg6 {[%clk 0:01:22.4]}
59... Kf8 {[%clk 0:00:05.9]} 60. Ra8+ {[%clk 0:01:17.1]} 60... Ke7 {[%clk
0:00:05.8]} 61. Kg7 {[%clk 0:01:17.6]} 61... Rg4 {[%clk 0:00:05.3]} 62. g6
{[%clk 0:01:14.4]} 62... Rg2 {[%clk 0:00:05.3]} 63. Ra3 {[%clk 0:01:11.5]} 63...
Rg1 {[%clk 0:00:04.8]} 64. Re3+ {[%clk 0:01:11.1]} 64... Kd6 {[%clk 0:00:05]}
65. Kf7 {[%clk 0:01:10]} 65... Rf1+ {[%clk 0:00:04.7]} 66. Kg8 {[%clk
0:01:10.6]} 66... Rg1 {[%clk 0:00:04.4]} 67. g7 {[%clk 0:01:11.1]} 67... Rg2
{[%clk 0:00:04.1]} 68. Rh3 {[%clk 0:01:11]} 68... Rg4 {[%clk 0:00:02.8]} 69. Kh8
{[%clk 0:01:11.3]} 1-0

[Event "*** Titled Tuesday Blitz"]
[Site "Chess.com"]
[Date "2020.04.28"]
[Round "6"]
[White "IAgrest"]
[Black "Kate1606"]
[Result "1-0"]
[WhiteElo "2264"]
[BlackElo "2020"]
[TimeControl "180+1"]
[EndTime "11:07:30 PDT"]
[Termination "IAgrest won on time"]

1. e4 {[%clk 0:03:00.9]} 1... c5 {[%clk 0:03:00.1]} 2. Nf3 {[%clk 0:03:00.5]}
2... g6 {[%clk 0:03:00.5]} 3. d4 {[%clk 0:03:00.2]} 3... cxd4 {[%clk 0:03:00.9]}
4. Nxd4 {[%clk 0:03:00.9]} 4... Nc6 {[%clk 0:03:00.9]} 5. Nc3 {[%clk 0:03:00.5]}
5... Bg7 {[%clk 0:03:00.6]} 6. Be3 {[%clk 0:03:01.1]} 6... Nf6 {[%clk
0:03:00.7]} 7. Bc4 {[%clk 0:03:01.6]} 7... O-O {[%clk 0:03:00.4]} 8. Bb3 {[%clk
0:02:59.7]} 8... a5 {[%clk 0:03:00.4]} 9. a4 {[%clk 0:02:54.3]} 9... Ng4 {[%clk
0:02:58.3]} 10. Qxg4 {[%clk 0:02:48]} 10... Nxd4 {[%clk 0:02:56.9]} 11. Bxd4
{[%clk 0:02:45.3]} 11... Bxd4 {[%clk 0:02:57.8]} 12. Qd1 {[%clk 0:02:45.1]}
12... Bxc3+ {[%clk 0:02:17]} 13. bxc3 {[%clk 0:02:46]} 13... Qc7 {[%clk
0:02:17.5]} 14. Qd4 {[%clk 0:02:27]} 14... d6 {[%clk 0:02:04.3]} 15. O-O {[%clk
0:02:25.9]} 15... Bd7 {[%clk 0:01:56.9]} 16. h4 {[%clk 0:02:21.5]} 16... h5
{[%clk 0:01:51.5]} 17. Rfe1 {[%clk 0:02:19.4]} 17... Rac8 {[%clk 0:01:46.6]} 18.
Re3 {[%clk 0:02:18.5]} 18... Qc5 {[%clk 0:01:43.5]} 19. Rd1 {[%clk 0:01:58.8]}
19... Bg4 {[%clk 0:01:27.3]} 20. Rd2 {[%clk 0:01:48.6]} 20... Rc7 {[%clk
0:01:10.7]} 21. e5 {[%clk 0:01:39.6]} 21... dxe5 {[%clk 0:01:04.3]} 22. Rxe5
{[%clk 0:01:39]} 22... Qxc3 {[%clk 0:00:59.6]} 23. Qxc3 {[%clk 0:01:29.1]} 23...
Rxc3 {[%clk 0:00:59.2]} 24. Rxe7 {[%clk 0:01:29]} 24... b6 {[%clk 0:00:40.4]}
25. Rd6 {[%clk 0:01:28.2]} 25... Bf5 {[%clk 0:00:33.8]} 26. Rd2 {[%clk 0:01:03]}
26... Kg7 {[%clk 0:00:26.6]} 27. Rb7 {[%clk 0:00:59.2]} 27... Rc6 {[%clk
0:00:23.5]} 28. f3 {[%clk 0:00:52.3]} 28... Kf6 {[%clk 0:00:22.3]} 29. Kf2
{[%clk 0:00:43]} 29... Be6 {[%clk 0:00:21.1]} 30. Bxe6 {[%clk 0:00:30.9]} 30...
Kxe6 {[%clk 0:00:22]} 31. Re2+ {[%clk 0:00:26.6]} 31... Kf6 {[%clk 0:00:22.1]}
32. Kg3 {[%clk 0:00:21.4]} 32... Rfc8 {[%clk 0:00:19]} 33. Ree7 {[%clk
0:00:21.3]} 33... Rf8 {[%clk 0:00:15.4]} 34. Re2 {[%clk 0:00:19.7]} 34... Rfc8
{[%clk 0:00:14.8]} 35. Ree7 {[%clk 0:00:19.6]} 35... Rf8 {[%clk 0:00:14.7]} 36.
Red7 {[%clk 0:00:19.8]} 36... Rxc2 {[%clk 0:00:12.7]} 37. Rxb6+ {[%clk
0:00:19.6]} 37... Kg7 {[%clk 0:00:11.7]} 38. Rb5 {[%clk 0:00:18.7]} 38... Re8
{[%clk 0:00:07.2]} 39. Rbb7 {[%clk 0:00:18.6]} 39... Rf8 {[%clk 0:00:06.7]} 40.
Ra7 {[%clk 0:00:18.5]} 40... Kf6 {[%clk 0:00:02.6]} 41. Ra6+ {[%clk 0:00:17.4]}
41... Kg7 {[%clk 0:00:02.6]} 42. Rxa5 {[%clk 0:00:17.7]} 42... Re8 {[%clk
0:00:01.1]} 43. Raa7 {[%clk 0:00:17.5]} 43... Ree2 {[%clk 0:00:01.8]} 44. Rxf7+
{[%clk 0:00:17.1]} 44... Kg8 {[%clk 0:00:02.3]} 45. Rg7+ {[%clk 0:00:17]} 45...
Kf8 {[%clk 0:00:01.5]} 46. Rgb7 {[%clk 0:00:14.6]} 1-0

[Event "*** Titled Tuesday Blitz"]
[Site "Chess.com"]
[Date "2020.04.28"]
[Round "6"]
[White "Stewie_89"]
[Black "TargetA"]
[Result "0-1"]
[WhiteElo "2622"]
[BlackElo "2492"]
[TimeControl "180+1"]
[EndTime "11:07:32 PDT"]
[Termination "TargetA won by resignation"]

1. e4 {[%clk 0:03:00.9]} 1... c5 {[%clk 0:02:44.9]} 2. Nf3 {[%clk 0:02:59.5]}
2... d6 {[%clk 0:02:44.5]} 3. Bb5+ {[%clk 0:02:56.3]} 3... Nc6 {[%clk
0:02:43.9]} 4. Bxc6+ {[%clk 0:02:55.9]} 4... bxc6 {[%clk 0:02:43.8]} 5. h3
{[%clk 0:02:56.6]} 5... e5 {[%clk 0:02:44]} 6. c3 {[%clk 0:02:56]} 6... Nf6
{[%clk 0:02:41.3]} 7. Qe2 {[%clk 0:02:52.7]} 7... g6 {[%clk 0:02:35.3]} 8. O-O
{[%clk 0:02:50.7]} 8... Bg7 {[%clk 0:02:35.2]} 9. d4 {[%clk 0:02:50.7]} 9...
cxd4 {[%clk 0:02:30.4]} 10. cxd4 {[%clk 0:02:50.5]} 10... exd4 {[%clk
0:02:25.7]} 11. e5 {[%clk 0:02:22.9]} 11... dxe5 {[%clk 0:02:22.8]} 12. Qxe5+
{[%clk 0:02:14.1]} 12... Qe7 {[%clk 0:02:06.5]} 13. Qxe7+ {[%clk 0:02:06]} 13...
Kxe7 {[%clk 0:02:07.4]} 14. Nxd4 {[%clk 0:02:06.1]} 14... Bb7 {[%clk 0:02:01.6]}
15. Re1+ {[%clk 0:02:05.4]} 15... Kd7 {[%clk 0:02:00.9]} 16. Nb3 {[%clk
0:02:03.5]} 16... Rae8 {[%clk 0:01:53.1]} 17. Rd1+ {[%clk 0:01:45.5]} 17... Kc8
{[%clk 0:01:52]} 18. Nc3 {[%clk 0:01:43.9]} 18... Ne4 {[%clk 0:01:42.5]} 19.
Nxe4 {[%clk 0:01:41.9]} 19... Rxe4 {[%clk 0:01:43.4]} 20. Be3 {[%clk 0:01:38.5]}
20... Bxb2 {[%clk 0:01:26.1]} 21. Rab1 {[%clk 0:01:37]} 21... Ba3 {[%clk
0:01:26.4]} 22. Bxa7 {[%clk 0:01:34]} 22... Rd8 {[%clk 0:01:08.6]} 23. Bb6
{[%clk 0:01:22.4]} 23... Rd5 {[%clk 0:00:58.7]} 24. Re1 {[%clk 0:01:07.5]} 24...
Rxe1+ {[%clk 0:00:48.5]} 25. Rxe1 {[%clk 0:01:06.9]} 25... Kd7 {[%clk
0:00:39.5]} 26. Re2 {[%clk 0:00:35.7]} 26... c5 {[%clk 0:00:36.6]} 27. Rd2
{[%clk 0:00:29]} 27... c4 {[%clk 0:00:34.8]} 28. Rxd5+ {[%clk 0:00:27.7]} 28...
Bxd5 {[%clk 0:00:35.7]} 29. Nd4 {[%clk 0:00:26.6]} 29... c3 {[%clk 0:00:35.3]}
30. Ba5 {[%clk 0:00:26.1]} 30... Bb2 {[%clk 0:00:32.4]} 31. Kf1 {[%clk
0:00:24.1]} 31... Bxa2 {[%clk 0:00:28.7]} 32. Ke2 {[%clk 0:00:24.1]} 32... Bc4+
{[%clk 0:00:28.5]} 33. Kd1 {[%clk 0:00:20.5]} 33... Bd3 {[%clk 0:00:28.8]} 34.
Nc2 {[%clk 0:00:16.2]} 34... Ke6 {[%clk 0:00:28.4]} 35. g3 {[%clk 0:00:16.2]}
35... Kd5 {[%clk 0:00:27.6]} 36. Ne3+ {[%clk 0:00:15.9]} 36... Ke4 {[%clk
0:00:27.8]} 37. Bb6 {[%clk 0:00:14.7]} 37... Kf3 {[%clk 0:00:26.7]} 38. Nc2
{[%clk 0:00:14.9]} 38... Bxc2+ {[%clk 0:00:26.2]} 39. Kxc2 {[%clk 0:00:14.5]}
39... h5 {[%clk 0:00:26.8]} 40. h4 {[%clk 0:00:14.8]} 40... Ba1 {[%clk
0:00:25.9]} 41. Be3 {[%clk 0:00:14.6]} 41... Bb2 {[%clk 0:00:25.3]} 42. Bd4
{[%clk 0:00:14.7]} 42... f5 {[%clk 0:00:23.9]} 43. Be3 {[%clk 0:00:14.9]} 43...
Ba1 {[%clk 0:00:24.1]} 44. Kd3 {[%clk 0:00:15.1]} 44... c2 {[%clk 0:00:22]} 45.
Kxc2 {[%clk 0:00:13.6]} 45... Be5 {[%clk 0:00:22.6]} 46. Kd3 {[%clk 0:00:13.9]}
46... f4 {[%clk 0:00:22.8]} 47. gxf4 {[%clk 0:00:12.8]} 47... Bxf4 {[%clk
0:00:23.7]} 48. Kd4 {[%clk 0:00:13.4]} 48... Bh2 {[%clk 0:00:21.5]} 49. Kd5
{[%clk 0:00:13.2]} 49... Bg1 {[%clk 0:00:20.9]} 50. Ke6 {[%clk 0:00:13]} 50...
Bxf2 {[%clk 0:00:21.3]} 51. Bg5 {[%clk 0:00:13.3]} 51... Kg4 {[%clk 0:00:20.6]}
52. Kf6 {[%clk 0:00:13.4]} 52... Bxh4 {[%clk 0:00:20.9]} 53. Bxh4 {[%clk
0:00:13.4]} 53... Kxh4 {[%clk 0:00:21.8]} 54. Kxg6 {[%clk 0:00:14.3]} 54... Kg4
{[%clk 0:00:22.3]} 0-1

[Event "*** Titled Tuesday Blitz"]
[Site "Chess.com"]
[Date "2020.04.28"]
[Round "6"]
[White "Misticpikachu"]
[Black "Klavdia_Nik"]
[Result "1-0"]
[WhiteElo "2301"]
[BlackElo "2034"]
[TimeControl "180+1"]
[EndTime "11:07:33 PDT"]
[Termination "Misticpikachu won on time"]

1. c4 {[%clk 0:03:00.9]} 1... Nf6 {[%clk 0:02:58.1]} 2. Nc3 {[%clk 0:03:00.7]}
2... g6 {[%clk 0:02:55.4]} 3. e4 {[%clk 0:03:00.9]} 3... d6 {[%clk 0:02:55]} 4.
d4 {[%clk 0:03:01.2]} 4... Bg7 {[%clk 0:02:55.6]} 5. h3 {[%clk 0:03:01.7]} 5...
O-O {[%clk 0:02:55.6]} 6. Be3 {[%clk 0:03:02.2]} 6... Nbd7 {[%clk 0:02:52.8]} 7.
g4 {[%clk 0:03:01.6]} 7... c5 {[%clk 0:02:52.1]} 8. d5 {[%clk 0:02:58.7]} 8...
b5 {[%clk 0:02:42.3]} 9. cxb5 {[%clk 0:02:52.6]} 9... a6 {[%clk 0:02:33.6]} 10.
bxa6 {[%clk 0:02:49.6]} 10... Bxa6 {[%clk 0:02:33.4]} 11. Bxa6 {[%clk 0:02:50]}
11... Rxa6 {[%clk 0:02:32.5]} 12. Qe2 {[%clk 0:02:50.6]} 12... Qa5 {[%clk
0:02:17.8]} 13. Bd2 {[%clk 0:02:44.4]} 13... Rb8 {[%clk 0:02:07.9]} 14. Rb1
{[%clk 0:02:34.7]} 14... Raa8 {[%clk 0:02:03.5]} 15. Nf3 {[%clk 0:02:31.1]}
15... Ne8 {[%clk 0:01:59.7]} 16. O-O {[%clk 0:02:29.3]} 16... Nc7 {[%clk
0:01:56]} 17. Bf4 {[%clk 0:02:07.8]} 17... Bxc3 {[%clk 0:01:39.3]} 18. bxc3
{[%clk 0:02:06.2]} 18... Qxc3 {[%clk 0:01:39.7]} 19. Rxb8+ {[%clk 0:01:55.8]}
19... Rxb8 {[%clk 0:01:31.5]} 20. e5 {[%clk 0:01:56.2]} 20... Nxd5 {[%clk
0:01:29]} 21. Bg3 {[%clk 0:01:49.9]} 21... Rb2 {[%clk 0:01:20.8]} 22. Qe4 {[%clk
0:01:45.4]} 22... e6 {[%clk 0:01:10.2]} 23. exd6 {[%clk 0:01:34]} 23... Rb4
{[%clk 0:01:04.2]} 24. Qe2 {[%clk 0:01:25.5]} 24... Rb2 {[%clk 0:00:59.7]} 25.
Qd1 {[%clk 0:01:06.5]} 25... Rxa2 {[%clk 0:00:54.3]} 26. Re1 {[%clk 0:01:03.9]}
26... h6 {[%clk 0:00:29.4]} 27. Ne5 {[%clk 0:01:03.5]} 27... Ra7 {[%clk
0:00:20.1]} 28. Nxd7 {[%clk 0:00:53.1]} 28... Rxd7 {[%clk 0:00:21]} 29. Qa4
{[%clk 0:00:53]} 29... Ra7 {[%clk 0:00:21.9]} 30. Qxa7 {[%clk 0:00:44.8]} 30...
Qxe1+ {[%clk 0:00:19]} 31. Kh2 {[%clk 0:00:45]} 31... Ne3 {[%clk 0:00:16.1]} 32.
Qb8+ {[%clk 0:00:41]} 32... Kh7 {[%clk 0:00:15.6]} 33. d7 {[%clk 0:00:21.1]}
33... Nf1+ {[%clk 0:00:13.5]} 34. Kg2 {[%clk 0:00:20.1]} 34... Nxg3 {[%clk
0:00:13.2]} 35. Qxg3 {[%clk 0:00:15.3]} 35... Qd1 {[%clk 0:00:11.6]} 36. Qc7
{[%clk 0:00:15.3]} 36... Qd5+ {[%clk 0:00:10.8]} 37. Kh2 {[%clk 0:00:15.6]}
37... Qf3 {[%clk 0:00:09.5]} 38. Qxc5 {[%clk 0:00:12.2]} 38... Qd1 {[%clk
0:00:06.7]} 39. Qa7 {[%clk 0:00:08.2]} 39... Qf3 {[%clk 0:00:05.8]} 40. d8=Q
{[%clk 0:00:06.9]} 40... Qf4+ {[%clk 0:00:04.9]} 41. Kg2 {[%clk 0:00:07.4]}
41... Qe4+ {[%clk 0:00:03.8]} 42. Kf1 {[%clk 0:00:08]} 42... Qb1+ {[%clk
0:00:03.2]} 43. Ke2 {[%clk 0:00:07.5]} 43... Qe4+ {[%clk 0:00:02.6]} 44. Kd2
{[%clk 0:00:07.1]} 1-0

[Event "*** Titled Tuesday Blitz"]
[Site "Chess.com"]
[Date "2020.04.28"]
[Round "6"]
[White "Zkid"]
[Black "David_Paravyan"]
[Result "1-0"]
[WhiteElo "2821"]
[BlackElo "2954"]
[TimeControl "180+1"]
[EndTime "11:07:34 PDT"]
[Termination "Zkid won by resignation"]

1. e4 {[%clk 0:03:00.9]} 1... c5 {[%clk 0:02:59.5]} 2. Nf3 {[%clk 0:03:00.5]}
2... Nc6 {[%clk 0:03:00]} 3. Bb5 {[%clk 0:02:59.5]} 3... g6 {[%clk 0:03:00]} 4.
Bxc6 {[%clk 0:02:59.6]} 4... bxc6 {[%clk 0:03:00.9]} 5. O-O {[%clk 0:02:58.4]}
5... Bg7 {[%clk 0:03:01.3]} 6. Re1 {[%clk 0:02:58.9]} 6... Qc7 {[%clk
0:03:01.3]} 7. c3 {[%clk 0:02:57.8]} 7... d6 {[%clk 0:03:01.1]} 8. d4 {[%clk
0:02:57.5]} 8... cxd4 {[%clk 0:03:02]} 9. cxd4 {[%clk 0:02:58.4]} 9... Nf6
{[%clk 0:03:02.6]} 10. Nc3 {[%clk 0:02:58.6]} 10... O-O {[%clk 0:03:03.1]} 11.
h3 {[%clk 0:02:59.1]} 11... c5 {[%clk 0:03:01.1]} 12. e5 {[%clk 0:02:54.5]}
12... dxe5 {[%clk 0:03:00.6]} 13. dxe5 {[%clk 0:02:53.4]} 13... Rd8 {[%clk
0:03:01.1]} 14. Qc2 {[%clk 0:02:42.3]} 14... Bf5 {[%clk 0:02:54.5]} 15. Qa4
{[%clk 0:02:33.5]} 15... Nd5 {[%clk 0:02:46.9]} 16. Nxd5 {[%clk 0:02:31.7]}
16... Rxd5 {[%clk 0:02:47.8]} 17. Bf4 {[%clk 0:02:28.5]} 17... Qb7 {[%clk
0:02:33.2]} 18. Qb3 {[%clk 0:02:19]} 18... Qc6 {[%clk 0:02:00.2]} 19. Rac1
{[%clk 0:02:07.5]} 19... a5 {[%clk 0:01:27.9]} 20. Rc3 {[%clk 0:01:59]} 20... a4
{[%clk 0:01:24]} 21. Qa3 {[%clk 0:01:57.5]} 21... Bf8 {[%clk 0:01:13.2]} 22.
Rec1 {[%clk 0:01:44.9]} 22... e6 {[%clk 0:01:00.9]} 23. Rc4 {[%clk 0:01:36.8]}
23... Bd3 {[%clk 0:00:49.8]} 24. Nd4 {[%clk 0:01:29.7]} 24... Rxd4 {[%clk
0:00:32.3]} 25. Rxd4 {[%clk 0:01:27.3]} 25... cxd4 {[%clk 0:00:32.8]} 26. Qxf8+
{[%clk 0:01:16.1]} 26... Kxf8 {[%clk 0:00:29.2]} 27. Rxc6 {[%clk 0:01:17]} 27...
Be4 {[%clk 0:00:11.3]} 28. Rc4 {[%clk 0:01:13.6]} 28... Bd5 {[%clk 0:00:07.5]}
29. Rxd4 {[%clk 0:01:12.3]} 29... Bxa2 {[%clk 0:00:07.9]} 30. Bh6+ {[%clk
0:01:10.5]} 30... Ke8 {[%clk 0:00:07.5]} 31. Rd6 {[%clk 0:01:05.1]} 31... Bd5
{[%clk 0:00:07.7]} 32. Bg5 {[%clk 0:01:04.1]} 32... h5 {[%clk 0:00:07.5]} 33.
Bf6 {[%clk 0:00:58.7]} 33... Bc4 {[%clk 0:00:07.5]} 34. f3 {[%clk 0:00:58.5]}
34... Bb5 {[%clk 0:00:07.9]} 35. Kf2 {[%clk 0:00:58.1]} 35... Bd7 {[%clk
0:00:08.5]} 36. g4 {[%clk 0:00:57.8]} 36... Rb8 {[%clk 0:00:06]} 37. Rd2 {[%clk
0:00:55.2]} 37... Rb5 {[%clk 0:00:03.7]} 38. Kg3 {[%clk 0:00:51.1]} 38... Rd5
{[%clk 0:00:03.7]} 39. Rc2 {[%clk 0:00:36]} 39... Rd3 {[%clk 0:00:04]} 40. Kf4
{[%clk 0:00:31.3]} 40... Rb3 {[%clk 0:00:03.8]} 41. h4 {[%clk 0:00:26.8]} 41...
Rb4+ {[%clk 0:00:03.2]} 42. Kg5 {[%clk 0:00:26.8]} 42... Rb3 {[%clk 0:00:02.2]}
43. gxh5 {[%clk 0:00:26.1]} 43... gxh5 {[%clk 0:00:03.1]} 44. Kxh5 {[%clk
0:00:26.5]} 44... Bb5 {[%clk 0:00:02.8]} 45. Kg4 {[%clk 0:00:21.2]} 45... Bd3
{[%clk 0:00:02.3]} 46. Rd2 {[%clk 0:00:17.8]} 46... Kd7 {[%clk 0:00:02.2]} 47.
h5 {[%clk 0:00:15.9]} 47... Kc6 {[%clk 0:00:02.7]} 48. Rxd3 {[%clk 0:00:15.1]}
48... Rxd3 {[%clk 0:00:03.6]} 49. h6 {[%clk 0:00:15.7]} 49... Rd1 {[%clk
0:00:02]} 50. h7 {[%clk 0:00:15.6]} 50... Rg1+ {[%clk 0:00:02.6]} 51. Kh5 {[%clk
0:00:15.5]} 51... Rh1+ {[%clk 0:00:02]} 52. Bh4 {[%clk 0:00:15.7]} 1-0

[Event "*** Titled Tuesday Blitz"]
[Site "Chess.com"]
[Date "2020.04.28"]
[Round "6"]
[White "CarlosRBorn"]
[Black "dukicz123"]
[Result "0-1"]
[WhiteElo "2670"]
[BlackElo "2505"]
[TimeControl "180+1"]
[EndTime "11:07:35 PDT"]
[Termination "dukicz123 won by resignation"]

1. Nf3 {[%clk 0:03:00.9]} 1... Nf6 {[%clk 0:02:59.8]} 2. g3 {[%clk 0:03:01.3]}
2... g6 {[%clk 0:02:59.7]} 3. Bg2 {[%clk 0:03:01.9]} 3... Bg7 {[%clk 0:03:00.6]}
4. O-O {[%clk 0:03:02.7]} 4... O-O {[%clk 0:03:01.2]} 5. c4 {[%clk 0:03:03.1]}
5... d6 {[%clk 0:03:01.5]} 6. Nc3 {[%clk 0:03:03.2]} 6... Nc6 {[%clk 0:03:01.6]}
7. Rb1 {[%clk 0:03:03.1]} 7... a5 {[%clk 0:03:00.9]} 8. a3 {[%clk 0:03:03.1]}
8... e5 {[%clk 0:03:01.1]} 9. d3 {[%clk 0:03:03]} 9... Nd4 {[%clk 0:03:00.8]}
10. e3 {[%clk 0:03:01.2]} 10... Ne6 {[%clk 0:03:00]} 11. b4 {[%clk 0:03:00.6]}
11... axb4 {[%clk 0:02:59.8]} 12. axb4 {[%clk 0:03:01.5]} 12... c6 {[%clk
0:03:00.4]} 13. b5 {[%clk 0:02:58.3]} 13... Nc7 {[%clk 0:02:57.4]} 14. bxc6
{[%clk 0:02:55.1]} 14... bxc6 {[%clk 0:02:58.3]} 15. Nd2 {[%clk 0:02:55.4]}
15... d5 {[%clk 0:02:56.7]} 16. Na4 {[%clk 0:02:52.2]} 16... Bf5 {[%clk
0:02:52.3]} 17. e4 {[%clk 0:02:41.4]} 17... Bg4 {[%clk 0:02:46]} 18. f3 {[%clk
0:02:32]} 18... Be6 {[%clk 0:02:45.7]} 19. Nb6 {[%clk 0:02:28.3]} 19... Rb8
{[%clk 0:02:30.2]} 20. Ba3 {[%clk 0:02:28]} 20... dxe4 {[%clk 0:02:23.9]} 21.
Nxe4 {[%clk 0:02:06.4]} 21... Rxb6 {[%clk 0:02:15]} 22. Rxb6 {[%clk 0:02:02.9]}
22... Qd4+ {[%clk 0:02:14.9]} 23. Kh1 {[%clk 0:02:01.4]} 23... Qxb6 {[%clk
0:02:15.4]} 24. Bxf8 {[%clk 0:01:51.9]} 24... Kxf8 {[%clk 0:02:16.3]} 25. Qa1
{[%clk 0:01:42.6]} 25... Nxe4 {[%clk 0:02:12]} 26. fxe4 {[%clk 0:01:42.9]} 26...
Qc5 {[%clk 0:02:04.3]} 27. Qb2 {[%clk 0:01:40.3]} 27... Bh6 {[%clk 0:01:33]} 28.
Qb8+ {[%clk 0:01:13.1]} 28... Ne8 {[%clk 0:01:33.1]} 29. h4 {[%clk 0:01:09.2]}
29... Qd6 {[%clk 0:01:28.8]} 30. Qb3 {[%clk 0:01:05]} 30... Kg7 {[%clk
0:01:27.2]} 31. Kh2 {[%clk 0:01:04.9]} 31... Nf6 {[%clk 0:01:26.5]} 32. Bf3
{[%clk 0:01:03.9]} 32... Bg4 {[%clk 0:01:16.6]} 33. Kg2 {[%clk 0:01:01.3]} 33...
Bxf3+ {[%clk 0:01:16.2]} 34. Rxf3 {[%clk 0:01:02.2]} 34... Nd7 {[%clk
0:00:42.1]} 35. c5 {[%clk 0:00:59]} 35... Qe7 {[%clk 0:00:41.2]} 36. Qb7 {[%clk
0:00:55.3]} 36... Qe6 {[%clk 0:00:37.8]} 37. Qa7 {[%clk 0:00:47.6]} 37... Bd2
{[%clk 0:00:37.4]} 38. h5 {[%clk 0:00:42.4]} 38... Bc3 {[%clk 0:00:34.6]} 39.
hxg6 {[%clk 0:00:41.9]} 39... hxg6 {[%clk 0:00:34.4]} 40. Rf1 {[%clk 0:00:37.3]}
40... Bd4 {[%clk 0:00:33.7]} 41. Qa8 {[%clk 0:00:34.6]} 41... Bxc5 {[%clk
0:00:33.1]} 42. Rh1 {[%clk 0:00:34.2]} 42... Bf8 {[%clk 0:00:32.8]} 43. Rc1
{[%clk 0:00:34]} 43... c5 {[%clk 0:00:32.4]} 44. Qc8 {[%clk 0:00:30.1]} 44...
Qd6 {[%clk 0:00:30.9]} 45. Rf1 {[%clk 0:00:27.4]} 45... Qxd3 {[%clk 0:00:26]}
46. Qd8 {[%clk 0:00:26.9]} 46... Qxe4+ {[%clk 0:00:23.6]} 47. Kh2 {[%clk
0:00:26]} 47... Qe2+ {[%clk 0:00:22.3]} 48. Kg1 {[%clk 0:00:26.1]} 48... Qe3+
{[%clk 0:00:21.2]} 49. Kg2 {[%clk 0:00:26.1]} 49... Qe4+ {[%clk 0:00:21.2]} 50.
Kg1 {[%clk 0:00:26.5]} 50... Qd5 {[%clk 0:00:21.7]} 51. Qe8 {[%clk 0:00:19.5]}
51... Qe6 {[%clk 0:00:19.5]} 52. Qc8 {[%clk 0:00:18.3]} 52... e4 {[%clk
0:00:18.9]} 53. Re1 {[%clk 0:00:18]} 53... c4 {[%clk 0:00:18.7]} 54. Qa8 {[%clk
0:00:18.9]} 54... Bc5+ {[%clk 0:00:18]} 55. Kg2 {[%clk 0:00:18.8]} 55... e3
{[%clk 0:00:18.2]} 56. Qf3 {[%clk 0:00:18.7]} 56... Ne5 {[%clk 0:00:15.7]} 57.
Re2 {[%clk 0:00:19.6]} 57... Nxf3 {[%clk 0:00:15.5]} 0-1